bitfinex/quotes_BTCUSD_20250917
["timestamp","ask_amount","ask_price","bid_price","bid_amount"]
[1758143979907,1e-08,115870.0,115860.0,2.58124786]
[1758143987102,1e-08,115870.0,115860.0,2.69013377]
[1758143988474,1e-08,115870.0,115860.0,2.78337377]
[1758143989831,1e-08,115870.0,115860.0,2.50957377]
[1758143990034,1e-08,115870.0,115860.0,2.78317377]
[1758143990622,1e-08,115870.0,115860.0,2.67428786]
[1758143992254,1e-08,115870.0,115860.0,2.93778786]
[1758143996605,1e-08,115870.0,115860.0,3.04667377]
[1758143999946,1e-08,115870.0,115860.0,2.93778786]
[1758144000622,1e-08,115870.0,115860.0,3.04667377]
[1758144001721,1e-08,115870.0,115860.0,2.77307377]
[1758144001940,1e-08,115870.0,115860.0,3.04655377]
[1758144002167,1e-08,115870.0,115860.0,2.99381187]
[1758144002391,1e-08,115870.0,115860.0,2.88492596]
[1758144002615,1e-08,115870.0,115860.0,2.91507786]
[1758144002825,1e-08,115870.0,115860.0,2.88492596]
[1758144003322,1e-08,115870.0,115860.0,2.91200786]
[1758144003532,0.00212001,115870.0,115860.0,2.91200786]
[1758144003753,0.00212001,115870.0,115860.0,2.57200786]
[1758144003978,0.02874001,115870.0,115860.0,2.13229544]
[1758144004157,0.02874001,115870.0,115860.0,2.20879544]
[1758144004367,0.02874001,115870.0,115860.0,2.21079544]
[1758144004797,0.02874001,115870.0,115860.0,2.20879544]
[1758144005227,0.02874001,115870.0,115860.0,2.29406511]
[1758144005453,0.02874001,115870.0,115860.0,1.88309527]
[1758144005680,0.02556001,115870.0,115860.0,2.29606511]
[1758144006809,0.02874001,115870.0,115860.0,2.29606511]
[1758144007278,0.02874001,115870.0,115860.0,1.88109527]
[1758144007493,0.02874001,115870.0,115860.0,2.29406511]
[1758144008143,0.00530001,115870.0,115860.0,2.29606511]
[1758144009461,0.00530001,115870.0,115860.0,2.29406511]
[1758144009681,0.02874001,115870.0,115860.0,1.75337387]
[1758144010122,0.02874001,115870.0,115860.0,1.34040403]
[1758144010346,0.02874001,115870.0,115860.0,1.75337387]
[1758144011942,0.02874001,115870.0,115860.0,2.16675809]
[1758144012156,0.02874001,115870.0,115860.0,1.76675809]
[1758144012614,0.02874001,115870.0,115860.0,2.16675809]
[1758144013051,0.02874001,115870.0,115860.0,1.34040403]
[1758144013262,0.02874001,115870.0,115860.0,1.76675809]
[1758144014126,0.02874001,115870.0,115860.0,1.35358106]
[1758144015028,0.02874001,115870.0,115860.0,0.86137916]
[1758144015029,0.20134724,115870.0,115860.0,0.86137916]
[1758144016983,0.02874001,115870.0,115860.0,0.86137916]
[1758144017636,0.20134724,115870.0,115860.0,0.86137916]
[1758144018776,0.20134724,115870.0,115860.0,0.44820213]
[1758144018983,0.20134724,115870.0,115860.0,0.86137916]
[1758144019822,0.02874001,115870.0,115860.0,0.86137916]
[1758144020040,0.20134724,115870.0,115860.0,0.86137916]
[1758144023020,0.20134724,115870.0,115860.0,0.44820213]
[1758144023233,0.20134724,115870.0,115860.0,0.17472213]
[1758144023444,0.20134724,115870.0,115860.0,0.86125916]
[1758144023905,0.02874001,115870.0,115860.0,0.86125916]
[1758144027752,0.20134724,115870.0,115860.0,0.86125916]
[1758144028395,0.02874001,115870.0,115860.0,0.86125916]
[1758144029257,0.02874001,115870.0,115860.0,0.44808213]
[1758144029473,0.02874001,115870.0,115860.0,0.86125916]
[1758144031220,0.20134724,115870.0,115860.0,0.86125916]
[1758144033489,0.02874001,115870.0,115860.0,0.86125916]
[1758144033973,0.20134724,115870.0,115860.0,0.44808213]
[1758144034223,0.20134724,115870.0,115860.0,0.86125916]
[1758144037035,0.02874001,115870.0,115860.0,0.86125916]
[1758144037235,0.02874001,115870.0,115860.0,1.27443619]
[1758144037457,1e-08,115870.0,115860.0,1.27645619]
[1758144037668,1e-08,115870.0,115860.0,1.27948619]
[1758144037882,1e-08,115870.0,115860.0,1.27645619]
[1758144038159,0.00196001,115870.0,115860.0,0.45010213]
[1758144038334,0.00196001,115870.0,115860.0,1.27645619]
[1758144038789,0.00496001,115870.0,115860.0,1.27645619]
[1758144039432,0.00496001,115870.0,115860.0,0.44808213]
[1758144039644,0.02957001,115870.0,115860.0,1.27443619]
[1758144040072,1e-08,115870.0,115860.0,1.48017743]
[1758144040285,1e-08,115870.0,115860.0,1.07696337]
[1758144040502,1e-08,115870.0,115860.0,2.34242039]
[1758144040733,1e-08,115870.0,115860.0,1.92924336]
[1758144041180,1e-08,115870.0,115860.0,2.34242039]
[1758144043761,1e-08,115870.0,115860.0,1.92924336]
[1758144044797,1e-08,115870.0,115860.0,2.34242039]
[1758144045211,1e-08,115870.0,115860.0,1.92924336]
[1758144045414,1e-08,115870.0,115860.0,1.52924336]
[1758144049425,1e-08,115870.0,115860.0,2.28242039]
[1758144049687,1e-08,115870.0,115860.0,2.68242039]
[1758144056425,0.02758701,115900.0,115890.0,0.58575447]
[1758144056775,0.02954701,115900.0,115890.0,0.58575447]
[1758144057191,0.02964701,115900.0,115890.0,0.58575447]
[1758144058333,0.03064701,115900.0,115890.0,0.58585447]
[1758144059015,0.03076866,115900.0,115890.0,0.58585447]
[1758144059699,0.02976866,115900.0,115890.0,0.58585447]
[1758144059885,0.03076866,115900.0,115890.0,0.58585447]
[1758144061165,0.02976866,115900.0,115890.0,0.58585447]
[1758144064391,0.00515866,115900.0,115890.0,0.58585447]
[1758144065235,0.02862866,115900.0,115890.0,0.58585447]
[1758144067557,0.20119121,115900.0,115890.0,0.0001]
[1758144067761,0.20119121,115900.0,115890.0,0.17267744]
[1758144067968,0.61436824,115900.0,115890.0,0.17267744]
[1758144068187,0.61436824,115900.0,115890.0,0.0001]
[1758144068831,0.20119121,115900.0,115890.0,0.17267744]
[1758144069037,0.47407121,115900.0,115890.0,0.17267744]
[1758144070939,0.88724824,115900.0,115890.0,0.17267744]
[1758144073861,0.47407121,115900.0,115890.0,0.17267744]
[1758144078559,0.47407121,115900.0,115890.0,0.0001]
[1758144078787,0.88713431,115900.0,115890.0,0.0001]
[1758144082697,0.47407121,115900.0,115890.0,0.0001]
[1758144085678,0.47407121,115900.0,115890.0,0.17267744]
[1758144086993,0.47407121,115900.0,115890.0,0.0001]
[1758144087363,0.20119121,115900.0,115890.0,0.0001]
[1758144087566,0.47391121,115900.0,115890.0,0.0001]
[1758144088401,0.47391121,115900.0,115890.0,0.17267744]
[1758144088616,0.47391121,115900.0,115890.0,0.0001]
[1758144089043,0.97224398,115900.0,115890.0,0.0001]
[1758144089878,0.97830397,115900.0,115890.0,0.0001]
[1758144090132,0.97224398,115900.0,115890.0,0.0001]
[1758144091237,0.97830409,115900.0,115890.0,0.0001]
[1758144091404,0.97224398,115900.0,115890.0,0.0001]
[1758144091630,0.97830419,115900.0,115890.0,0.0001]
[1758144091878,0.97224398,115900.0,115890.0,0.0001]
[1758144092320,0.97830432,115900.0,115890.0,0.0001]
[1758144097010,0.56524122,115900.0,115890.0,0.0001]
[1758144097203,0.97830432,115900.0,115890.0,0.0001]
[1758144101450,0.56524122,115900.0,115890.0,0.0001]
[1758144101674,0.97830432,115900.0,115890.0,0.0001]
[1758144106551,0.97830228,115900.0,115890.0,0.0001]
[1758144112284,0.56523918,115900.0,115890.0,0.0001]
[1758144112947,0.97830228,115900.0,115890.0,0.0001]
[1758144115480,0.70558228,115900.0,115890.0,0.0001]
[1758144115687,0.97806228,115900.0,115890.0,0.0001]
[1758144118975,0.97806835,115900.0,115890.0,0.0001]
[1758144119213,0.99424626,115900.0,115890.0,0.0001]
[1758144120178,0.72176626,115900.0,115890.0,0.0001]
[1758144120366,0.99424626,115900.0,115890.0,0.0001]
[1758144121298,0.58118316,115900.0,115890.0,0.0001]
[1758144121515,0.97806835,115900.0,115890.0,0.17267744]
[1758144121759,0.56500525,115900.0,115890.0,0.17267744]
[1758144121994,0.56496525,115900.0,115890.0,0.17267744]
[1758144122214,0.56496525,115900.0,115890.0,0.62527714]
[1758144122215,0.00628602,115900.0,115890.0,0.62527714]
[1758144122428,0.00022165,115900.0,115890.0,1.06145024]
[1758144122641,0.00022165,115900.0,115890.0,1.08737143]
[1758144122854,0.00022165,115900.0,115890.0,0.67430833]
[1758144123533,0.00022165,115900.0,115890.0,0.67396833]
[1758144123746,0.00022165,115900.0,115890.0,0.67496833]
[1758144124359,0.00022165,115900.0,115890.0,0.68380817]
[1758144124786,0.00012165,115900.0,115890.0,0.68380817]
[1758144125401,0.00012165,115900.0,115890.0,0.64927157]
[1758144133768,0.00012165,115900.0,115890.0,0.64914428]
[1758144135592,0.00012165,115900.0,115890.0,0.64030444]
[1758144135793,0.00012165,115900.0,115890.0,0.61753444]
[1758144136215,0.00012165,115900.0,115890.0,0.64030444]
[1758144137931,0.00012165,115900.0,115890.0,0.64888427]
[1758144139149,0.00012165,115900.0,115890.0,0.64030444]
[1758144141042,0.00228165,115900.0,115890.0,0.20164863]
[1758144141244,0.00012165,115900.0,115890.0,0.64029444]
[1758144144363,0.00228165,115900.0,115890.0,0.20164863]
[1758144144576,0.00228165,115900.0,115890.0,0.61458444]
[1758144144807,0.02599165,115900.0,115890.0,0.61458444]
[1758144145024,0.00228165,115900.0,115890.0,0.20164863]
[1758144145232,0.00522165,115900.0,115890.0,0.61253444]
[1758144145441,0.02893165,115900.0,115890.0,0.61253444]
[1758144147799,0.2014942,115900.0,115890.0,0.19959863]
[1758144148008,0.02893165,115900.0,115890.0,0.61253444]
[1758144148707,0.02893165,115900.0,115890.0,0.61467444]
[1758144151185,0.02893165,115900.0,115890.0,0.20173863]
[1758144151397,0.02893165,115900.0,115890.0,0.61467444]
[1758144151893,0.02893165,115900.0,115890.0,0.20173863]
[1758144152059,0.02893165,115900.0,115890.0,0.61467444]
[1758144153349,0.00228165,115900.0,115890.0,0.61467444]
[1758144153821,0.00012165,115900.0,115890.0,0.61786444]
[1758144155435,0.00012165,115900.0,115890.0,0.64041444]
[1758144155649,0.00012165,115900.0,115890.0,0.61786444]
[1758144156295,0.00012165,115900.0,115890.0,0.64041444]
[1758144158309,0.00012165,115900.0,115890.0,0.61786444]
[1758144167671,0.00012165,115900.0,115890.0,0.64041444]
[1758144168565,0.00012165,115900.0,115890.0,0.61786444]
[1758144168990,0.00012165,115900.0,115890.0,0.64041444]
[1758144177489,0.00012165,115900.0,115890.0,0.22747863]
[1758144177763,0.00012165,115900.0,115890.0,0.64041444]
[1758144178453,0.00012165,115900.0,115890.0,1.05419025]
[1758144178667,0.00012165,115900.0,115890.0,0.64125444]
[1758144182203,0.00012165,115900.0,115890.0,0.22831863]
[1758144182412,0.00012165,115900.0,115890.0,0.64125444]
[1758144193260,0.00012165,115900.0,115890.0,0.61786444]
[1758144193474,0.00012165,115900.0,115890.0,0.22921863]
[1758144193687,0.00012165,115900.0,115890.0,0.61786444]
[1758144195863,0.00012165,115900.0,115890.0,0.61791061]
[1758144196702,0.02613,115910.0,115900.0,0.17256255]
[1758144196933,0.20070766,115910.0,115900.0,0.17256255]
[1758144197369,0.02826,115910.0,115900.0,0.17256255]
[1758144197576,0.20080766,115910.0,115900.0,0.19848432]
[1758144198455,0.20080766,115910.0,115900.0,0.19858432]
[1758144198884,0.02826,115910.0,115900.0,0.19858432]
[1758144199146,0.00521,115910.0,115900.0,0.20064432]
[1758144200097,0.17775766,115910.0,115900.0,0.20064432]
[1758144201527,0.00521,115910.0,115900.0,0.20064432]
[1758144203596,0.17775766,115910.0,115900.0,0.20064432]
[1758144203801,0.00521,115910.0,115900.0,0.20064432]
[1758144205431,0.17775766,115910.0,115900.0,0.20064432]
[1758144206001,0.00521,115910.0,115900.0,0.20064432]
[1758144207310,0.17775766,115910.0,115900.0,0.20064432]
[1758144207870,0.20080766,115910.0,115900.0,0.20064432]
[1758144210225,0.02826,115910.0,115900.0,0.20064432]
[1758144215345,0.20080766,115910.0,115900.0,0.20064432]
[1758144216444,0.02826,115910.0,115900.0,0.20064432]
[1758144217493,0.00521,115910.0,115900.0,0.20064432]
[1758144218949,0.17775766,115910.0,115900.0,0.20064432]
[1758144219560,0.00213,115910.0,115900.0,0.20064432]
[1758144221188,0.00518,115910.0,115900.0,0.20064432]
[1758144221552,0.02811,115910.0,115900.0,0.20064432]
[1758144221786,0.00518,115910.0,115900.0,0.20064432]
[1758144225204,0.00213,115910.0,115900.0,0.20064432]
[1758144225404,0.0001,115910.0,115900.0,0.20064432]
[1758144227514,0.27178,115910.0,115900.0,0.20382432]
[1758144229190,0.27178,115910.0,115900.0,0.6410963]
[1758144229191,0.0001,115910.0,115900.0,0.6410963]
[1758144230824,0.44565159,115920.0,115910.0,0.17254766]
[1758144231021,0.47163159,115920.0,115910.0,0.17254766]
[1758144231237,0.47358159,115920.0,115910.0,0.17254766]
[1758144231636,0.47358159,115920.0,115910.0,0.19846885]
[1758144231974,0.47368159,115920.0,115910.0,0.19846885]
[1758144232997,0.47568159,115920.0,115910.0,0.19856885]
[1758144233601,0.47568161,115920.0,115910.0,0.19856885]
[1758144233778,0.20400161,115920.0,115910.0,0.19856885]
[1758144233982,0.47564161,115920.0,115910.0,0.19856885]
[1758144234180,0.20400161,115920.0,115910.0,0.19856885]
[1758144234420,0.47564161,115920.0,115910.0,0.19856885]
[1758144234994,0.44771161,115920.0,115910.0,0.20054885]
[1758144235420,0.44771161,115920.0,115910.0,0.20372885]
[1758144235632,0.17607161,115920.0,115910.0,0.20054885]
[1758144235831,0.44771161,115920.0,115910.0,0.20054885]
[1758144236623,0.44966161,115920.0,115910.0,0.20054885]
[1758144238571,0.45278161,115920.0,115910.0,0.20054885]
[1758144240196,0.44966161,115920.0,115910.0,0.20054885]
[1758144240655,0.44966161,115920.0,115910.0,0.19856885]
[1758144240656,0.47637161,115920.0,115910.0,0.19856885]
[1758144241181,0.20473161,115920.0,115910.0,0.19856885]
[1758144241303,0.44962161,115920.0,115910.0,0.20058885]
[1758144241728,0.44962161,115920.0,115910.0,0.19856885]
[1758144241950,0.47633161,115920.0,115910.0,0.19856885]
[1758144243886,0.45274161,115920.0,115910.0,0.19856885]
[1758144244293,0.47563161,115920.0,115910.0,0.19856885]
[1758144248269,0.45274161,115920.0,115910.0,0.19856885]
[1758144249155,0.45270161,115920.0,115910.0,0.20061885]
[1758144249369,0.44663114,115920.0,115910.0,0.20061885]
[1758144249601,0.27972922,115920.0,115910.0,0.61360083]
[1758144249820,0.27972922,115920.0,115910.0,0.63994083]
[1758144250040,0.27366,115920.0,115910.0,0.63994083]
[1758144250889,0.27362,115920.0,115910.0,0.63994083]
[1758144251228,0.0021,115920.0,115910.0,0.63994083]
[1758144251453,0.27362,115920.0,115910.0,0.63994083]
[1758144251658,0.27352,115920.0,115910.0,0.63994083]
[1758144253651,0.27352,115920.0,115910.0,0.64843781]
[1758144254516,0.27352,115920.0,115910.0,0.63994083]
[1758144254747,0.27352,115920.0,115910.0,0.22695885]
[1758144255781,0.27352,115920.0,115910.0,0.20361885]
[1758144256496,0.27348,115920.0,115910.0,0.20361885]
[1758144257082,0.27348,115920.0,115910.0,0.20061885]
[1758144257289,0.27557,115920.0,115910.0,0.20061885]
[1758144257863,0.27557,115920.0,115910.0,0.61350291]
[1758144258204,0.27348,115920.0,115910.0,0.61650291]
[1758144259407,0.27344,115920.0,115910.0,0.63984291]
[1758144260366,0.27144,115920.0,115910.0,0.63984291]
[1758144262473,0.09354,115930.0,115920.0,0.17253278]
[1758144262706,0.36498,115930.0,115920.0,0.58746684]
[1758144262914,0.53749789,115930.0,115920.0,0.58746684]
[1758144263326,0.53749789,115930.0,115920.0,0.61338568]
[1758144263783,0.53949789,115930.0,115920.0,0.61348568]
[1758144264000,0.54158789,115930.0,115920.0,0.61348568]
[1758144264204,0.54158789,115930.0,115920.0,0.20060162]
[1758144264409,0.44834789,115930.0,115920.0,0.61348568]
[1758144265681,0.27583,115930.0,115920.0,0.61348568]
[1758144265887,0.44834789,115930.0,115920.0,0.61348568]
[1758144267036,0.44834789,115930.0,115920.0,0.20060162]
[1758144267203,0.44834789,115930.0,115920.0,0.61348568]
[1758144267527,0.27583,115930.0,115920.0,0.61348568]
[1758144268138,0.44834789,115930.0,115920.0,0.61348568]
[1758144268352,0.44834789,115930.0,115920.0,0.20060162]
[1758144269195,0.27583,115930.0,115920.0,0.20060162]
[1758144269600,0.00439,115930.0,115920.0,0.61348568]
[1758144269844,0.27575,115930.0,115920.0,0.61348568]
[1758144270821,0.44826789,115930.0,115920.0,0.61348568]
[1758144271018,0.0023,115930.0,115920.0,0.61648568]
[1758144271240,0.27366,115930.0,115920.0,0.67870483]
[1758144271456,0.0023,115930.0,115920.0,1.09158889]
[1758144271655,0.27356,115930.0,115920.0,0.26582077]
[1758144271859,0.27356,115930.0,115920.0,0.67870483]
[1758144272237,0.27356,115930.0,115920.0,0.63982568]
[1758144273086,0.27156,115930.0,115920.0,0.63982568]
[1758144273505,0.27156,115930.0,115920.0,0.91114568]
[1758144274126,0.27156,115930.0,115920.0,0.88780568]
[1758144274797,0.0002,115930.0,115920.0,0.88780568]
[1758144275040,0.27152,115930.0,115920.0,0.97677162]
[1758144275636,0.0002,115930.0,115920.0,0.97677162]
[1758144277445,0.0002,115930.0,115920.0,0.91209568]
[1758144278055,0.0002,115930.0,115920.0,0.49921162]
[1758144278494,0.0002,115930.0,115920.0,0.91209568]
[1758144279557,0.0002,115930.0,115920.0,0.49921162]
[1758144279701,0.0002,115930.0,115920.0,0.91209568]
[1758144280704,0.0002,115930.0,115920.0,0.95067817]
[1758144280883,0.0002,115930.0,115920.0,1.32497974]
[1758144282418,0.0002,115930.0,115920.0,0.91209568]
[1758144289416,0.0002,115930.0,115920.0,0.88780568]
[1758144290128,0.0002,115930.0,115920.0,0.47492162]
[1758144290339,0.0002,115930.0,115920.0,0.88780568]
[1758144290775,0.0002,115930.0,115920.0,1.30068974]
[1758144291393,0.0002,115930.0,115920.0,1.32497974]
[1758144292948,0.0002,115930.0,115920.0,0.49921162]
[1758144293173,0.0002,115930.0,115920.0,1.32497974]
[1758144294402,0.00235,115930.0,115920.0,0.88480568]
[1758144296126,0.00235,115930.0,115920.0,0.84656167]
[1758144296399,0.00235,115930.0,115920.0,0.40083859]
[1758144296528,0.00235,115930.0,115920.0,0.80918338]
[1758144297175,0.00548,115930.0,115920.0,0.39424932]
[1758144297388,0.02975,115930.0,115920.0,0.80713338]
[1758144297594,0.02975,115930.0,115920.0,0.39424932]
[1758144298695,0.02983107,115930.0,115920.0,0.39424932]
[1758144300294,0.09138307,115930.0,115920.0,0.39424932]
[1758144300723,0.67540502,115930.0,115920.0,0.19855162]
[1758144300969,0.94648502,115930.0,115920.0,0.19855162]
[1758144301181,0.94648502,115930.0,115920.0,0.02601884]
[1758144301795,0.94648502,115930.0,115920.0,0.19855162]
[1758144303146,0.47204896,115930.0,115920.0,0.19855162]
[1758144303977,0.29953107,115930.0,115920.0,0.61351568]
[1758144304197,0.29953107,115930.0,115920.0,0.20063162]
[1758144305572,0.47204896,115930.0,115920.0,0.20063162]
[1758144306010,0.47204896,115930.0,115920.0,0.61143568]
[1758144309175,0.47204896,115930.0,115920.0,0.61115277]
[1758144310373,0.47204896,115930.0,115920.0,0.19826871]
[1758144314121,0.29953107,115930.0,115920.0,0.20034871]
[1758144314774,0.29953107,115930.0,115920.0,0.19826871]
[1758144315193,0.29953107,115930.0,115920.0,0.61115277]
[1758144315410,0.47204896,115930.0,115920.0,0.61115277]
[1758144318523,0.44915896,115930.0,115920.0,0.61115277]
[1758144319405,0.47327896,115930.0,115920.0,0.61115277]
[1758144319850,0.29751107,115930.0,115920.0,0.20034871]
[1758144320292,0.47002896,115930.0,115920.0,0.20034871]
[1758144320780,0.47325896,115930.0,115920.0,0.19826871]
[1758144325674,0.02978107,115930.0,115920.0,0.19826871]
[1758144325895,0.29747107,115930.0,115920.0,0.20034871]
[1758144336223,0.30042107,115930.0,115920.0,0.19826871]
[1758144336435,0.29747107,115930.0,115920.0,0.20032871]
[1758144337530,0.00028107,115930.0,115920.0,0.22707871]
[1758144338343,0.00028107,115930.0,115920.0,0.63992646]
[1758144338744,0.00028107,115930.0,115920.0,0.61640646]
[1758144342155,0.00028107,115930.0,115920.0,0.20355871]
[1758144342363,0.00028107,115930.0,115920.0,0.61640646]
[1758144344498,0.00028107,115930.0,115920.0,0.63992646]
[1758144344924,0.00028107,115930.0,115920.0,0.61640646]
[1758144348512,0.00028107,115930.0,115920.0,0.63992646]
[1758144348978,0.00028107,115930.0,115920.0,0.61640646]
[1758144350273,0.00028107,115930.0,115920.0,0.63992646]
[1758144355243,0.00028107,115930.0,115920.0,0.61640646]
[1758144355483,0.00028107,115930.0,115920.0,0.63992646]
[1758144374559,0.16715027,115940.0,115930.0,0.17251789]
[1758144374784,0.19143027,115940.0,115930.0,0.58536564]
[1758144374987,0.03240594,115940.0,115930.0,0.85800564]
[1758144375225,0.02634,115940.0,115930.0,0.85800564]
[1758144375427,0.19894301,115940.0,115930.0,0.88392132]
[1758144375604,0.20500895,115940.0,115930.0,0.88392132]
[1758144376088,0.00616594,115940.0,115930.0,0.99934289]
[1758144376306,0.0001,115950.0,115940.0,0.20265491]
[1758144376520,0.0001,115950.0,115940.0,0.31506458]
[1758144376740,0.0001,115950.0,115940.0,1.23604008]
[1758144376965,0.0001,115960.0,115950.0,0.20264004]
[1758144377182,0.00018104,115960.0,115950.0,1.38412521]
[1758144377397,0.00018104,115960.0,115950.0,1.41334521]
[1758144377839,8.104e-05,115960.0,115950.0,1.43925225]
[1758144378281,8.104e-05,115960.0,115950.0,1.52452192]
[1758144378497,8.104e-05,115960.0,115950.0,1.86452192]
[1758144378698,8.104e-05,115960.0,115950.0,2.26452192]
[1758144379744,8.104e-05,115960.0,115950.0,2.26652192]
[1758144379949,8.104e-05,115960.0,115950.0,2.26564934]
[1758144381798,8.104e-05,115960.0,115950.0,2.26574934]
[1758144401114,8.104e-05,115960.0,115950.0,2.6781608]
[1758144401516,8.104e-05,115960.0,115950.0,2.26574934]
[1758144407990,8.104e-05,115960.0,115950.0,2.6781608]
[1758144408208,8.104e-05,115960.0,115950.0,2.26574934]
[1758144408417,8.104e-05,115960.0,115950.0,2.6781608]
[1758144409489,0.00614577,115960.0,115950.0,2.6781608]
[1758144410458,8.104e-05,115960.0,115950.0,2.6781608]
[1758144416163,8.104e-05,115960.0,115950.0,3.91539518]
[1758144416315,8.104e-05,115960.0,115950.0,2.6781608]
[1758144417087,8.104e-05,115960.0,115950.0,2.6761608]
[1758144417926,8.104e-05,115960.0,115950.0,2.6801608]
[1758144424873,1e-08,115970.0,115960.0,0.20262516]
[1758144425077,1e-08,115970.0,115960.0,3.14436326]
[1758144425302,1e-08,115970.0,115960.0,3.14643326]
[1758144425477,1e-08,115970.0,115960.0,3.56289326]
[1758144426951,1e-08,115970.0,115960.0,3.67377917]
[1758144427790,1e-08,115970.0,115960.0,3.67187917]
[1758144428076,1e-08,115970.0,115960.0,3.67487917]
[1758144430656,1e-08,115970.0,115960.0,3.56599326]
[1758144431136,1e-08,115970.0,115960.0,3.56595326]
[1758144431370,1e-08,115970.0,115960.0,2.43756479]
[1758144431817,1e-08,115970.0,115960.0,2.32867888]
[1758144431957,1e-08,115970.0,115960.0,2.05867888]
[1758144432173,1e-08,115970.0,115960.0,2.32867888]
[1758144433188,1e-08,115970.0,115960.0,2.33717888]
[1758144433801,1e-08,115970.0,115960.0,1.0999445]
[1758144434010,1e-08,115970.0,115960.0,2.33717888]
[1758144434211,1e-08,115970.0,115960.0,2.30702698]
[1758144434734,1e-08,115970.0,115960.0,2.33717888]
[1758144439431,1e-08,115970.0,115960.0,2.04362888]
[1758144439633,1e-08,115970.0,115960.0,0.97948483]
[1758144439634,0.00537001,115970.0,115960.0,0.97948483]
[1758144439845,0.00537001,115970.0,115960.0,2.14430775]
[1758144440051,0.00214001,115970.0,115960.0,1.80430775]
[1758144440252,1e-08,115970.0,115960.0,1.80430775]
[1758144440462,1e-08,115970.0,115960.0,2.22957742]
[1758144440923,1e-08,115970.0,115960.0,2.22657742]
[1758144441250,1e-08,115970.0,115960.0,2.22857742]
[1758144441475,1e-08,115970.0,115960.0,2.23167742]
[1758144441903,0.00214001,115970.0,115960.0,1.81615546]
[1758144442602,1e-08,115970.0,115960.0,1.81925546]
[1758144443939,1e-08,115970.0,115960.0,1.84280546]
[1758144448426,1e-08,115970.0,115960.0,1.93596546]
[1758144448858,1e-08,115970.0,115960.0,1.91241546]
[1758144449726,1e-08,115970.0,115960.0,1.93596546]
[1758144463860,1e-08,115970.0,115960.0,1.91241546]
[1758144467500,1e-08,115970.0,115960.0,1.93606546]
[1758144473999,1e-08,115970.0,115960.0,2.34846642]
[1758144477361,1e-08,115970.0,115960.0,1.93606546]
[1758144480964,1e-08,115970.0,115960.0,2.45735233]
[1758144491843,0.27453019,116030.0,116010.0,0.17239893]
[1758144491844,0.25168007,116030.0,116010.0,0.17239893]
[1758144492056,0.00205,116020.0,116010.0,0.17239893]
[1758144492285,0.00205,116020.0,116010.0,0.17249893]
[1758144492844,0.00205,116020.0,116010.0,0.61505179]
[1758144493052,0.00205,116020.0,116010.0,0.64094935]
[1758144493261,0.00215,116020.0,116010.0,0.22854839]
[1758144493467,0.00515,116020.0,116010.0,0.22854839]
[1758144493663,0.03075,116020.0,116010.0,0.22854839]
[1758144494897,0.02775,116020.0,116010.0,0.22854839]
[1758144495838,0.03075,116020.0,116010.0,0.22854839]
[1758144496245,0.03075,116020.0,116010.0,0.64094935]
[1758144496663,0.02775,116020.0,116010.0,0.64094935]
[1758144497113,0.02975,116020.0,116010.0,0.64094935]
[1758144497731,0.00714,116020.0,116010.0,0.64094935]
[1758144497942,0.00415,116020.0,116010.0,0.64292935]
[1758144498136,0.02975,116020.0,116010.0,0.64094935]
[1758144500863,0.02975,116020.0,116010.0,1.11344468]
[1758144500864,0.0021,116020.0,116010.0,1.11344468]
[1758144501069,0.0021,116020.0,116010.0,0.70104372]
[1758144501281,0.0021,116020.0,116010.0,0.72480372]
[1758144501698,0.002,116020.0,116010.0,0.72480372]
[1758144501915,0.002,116020.0,116010.0,0.72449221]
[1758144502783,0.19853926,116030.0,116020.0,0.20253597]
[1758144503067,0.19853926,116030.0,116020.0,0.61462542]
[1758144503281,0.20058926,116030.0,116020.0,0.61462542]
[1758144503486,0.20058926,116030.0,116020.0,0.64052048]
[1758144503715,0.20664681,116030.0,116020.0,0.64052048]
[1758144504135,0.20664681,116030.0,116020.0,0.64062048]
[1758144504373,0.20864681,116030.0,116020.0,0.64062048]
[1758144504591,0.03627727,116030.0,116020.0,0.64062048]
[1758144504802,0.03021972,116030.0,116020.0,0.64062048]
[1758144505394,0.20258893,116030.0,116020.0,0.64062048]
[1758144505602,0.20864648,116030.0,116020.0,0.64062048]
[1758144506010,0.03627727,116030.0,116020.0,0.64062048]
[1758144506227,0.03021972,116030.0,116020.0,0.64062048]
[1758144506837,0.03021972,116030.0,116020.0,0.63360362]
[1758144507254,0.20258893,116030.0,116020.0,0.22151417]
[1758144507631,0.20258893,116030.0,116020.0,0.63360362]
[1758144508234,0.20258893,116030.0,116020.0,0.22151417]
[1758144508452,0.20258893,116030.0,116020.0,0.63360362]
[1758144509069,0.20058893,116030.0,116020.0,0.63360362]
[1758144509292,0.20158893,116030.0,116020.0,0.22853103]
[1758144509550,0.20158893,116030.0,116020.0,0.64062048]
[1758144510419,0.61367838,116030.0,116020.0,0.05614696]
[1758144510637,0.88335838,116030.0,116020.0,0.22853103]
[1758144511121,0.47126893,116030.0,116020.0,0.05614696]
[1758144512185,0.47126893,116030.0,116020.0,0.22853103]
[1758144512398,0.47126893,116030.0,116020.0,0.05614696]
[1758144512619,0.47126893,116030.0,116020.0,0.22853103]
[1758144512835,0.88335838,116030.0,116020.0,0.22853103]
[1758144514823,0.47126893,116030.0,116020.0,0.22853103]
[1758144515034,0.88335838,116030.0,116020.0,0.05614696]
[1758144515250,0.88335838,116030.0,116020.0,0.02599506]
[1758144515467,0.88335838,116030.0,116020.0,0.0001]
[1758144516945,0.97468113,116030.0,116020.0,0.0001]
[1758144519757,1.00058041,116030.0,116020.0,0.0001]
[1758144521107,1.75266986,116030.0,116020.0,0.0001]
[1758144521572,0.17238407,116020.0,116010.0,0.0001]
[1758144521783,1.08183264,116020.0,116010.0,0.0001]
[1758144522000,1.11179264,116020.0,116010.0,0.0001]
[1758144522845,1.11189264,116020.0,116010.0,0.0001]
[1758144523073,0.69980319,116020.0,116010.0,0.0001]
[1758144523495,0.72570383,116020.0,116010.0,0.0001]
[1758144524114,0.7327601,116020.0,116010.0,0.0001]
[1758144524318,0.7317601,116020.0,116010.0,0.0001]
[1758144524942,0.70585936,116020.0,116010.0,0.0001]
[1758144525357,1.11794881,116020.0,116010.0,0.0001]
[1758144525781,1.11894881,116020.0,116010.0,0.0001]
[1758144525978,0.29476991,116020.0,116010.0,0.0001]
[1758144526193,1.11894881,116020.0,116010.0,0.0001]
[1758144528855,1.21210881,116020.0,116010.0,0.0001]
[1758144529053,1.57801068,116020.0,116010.0,0.0001]
[1758144529267,1.59415907,116020.0,116010.0,0.0001]
[1758144532291,0.81998017,116020.0,116010.0,0.0001]
[1758144532647,1.64415907,116020.0,116010.0,0.0001]
[1758144533004,1.64315907,116020.0,116010.0,0.0001]
[1758144533373,1.64615907,116020.0,116010.0,0.0001]
[1758144533828,1.64315907,116020.0,116010.0,0.0001]
[1758144534033,1.64615907,116020.0,116010.0,0.0001]